[Event "Titled Tuesday Blitz April 11 Early 2023"]
[White "NtcPou"]
[Black "Liu, Casper"]
[BlackFideId "1454153"]
[WhiteElo "1976"]
[BlackElo "2221"]
[Result "0-1"]
[Round "02"]
[TimeControl "180+2"]
[Date "2023.04.11"]
[WhiteClock "0:00:48"]
[BlackClock "0:01:15"]

1. e4 {[%clk 0:03:00]}  c5 {[%clk 0:02:57]} 2. Nf3 {[%clk 0:03:00]}  g6 {[%clk 0:02:56]} 3. c4 {[%clk 0:02:57]}  Bg7 {[%clk 0:02:54]} 4. d4 {[%clk 0:02:57]}  cxd4 {[%clk 0:02:55]} 5. Nxd4 {[%clk 0:02:57]}  Nf6 {[%clk 0:02:55]} 6. Nc3 {[%clk 0:02:57]}  Nc6 {[%clk 0:02:55]} 7. Be3 {[%clk 0:02:55]}  O-O {[%clk 0:02:56]} 8. Be2 {[%clk 0:02:54]}  a6 {[%clk 0:02:52]} 9. O-O {[%clk 0:02:53]}  Qa5 {[%clk 0:02:41]} 10. Nb3 {[%clk 0:02:47]}  Qc7 {[%clk 0:02:40]} 11. Qd2 {[%clk 0:02:43]}  d6 {[%clk 0:02:28]} 12. f3 {[%clk 0:02:43]}  Ne5 {[%clk 0:02:21]} 13. Rac1 {[%clk 0:02:38]}  Nfd7 {[%clk 0:02:20]} 14. Nd5 {[%clk 0:02:37]}  Qd8 {[%clk 0:02:19]} 15. f4 {[%clk 0:02:32]}  e6 {[%clk 0:02:13]} 16. fxe5 {[%clk 0:02:30]}  exd5 {[%clk 0:02:13]} 17. exd6 {[%clk 0:02:30]}  dxe4 {[%clk 0:02:12]} 18. c5 {[%clk 0:02:17]}  Ne5 {[%clk 0:02:12]} 19. h3 {[%clk 0:02:00]}  f5 {[%clk 0:01:50]} 20. Qd5+ {[%clk 0:01:57]}  Kh8 {[%clk 0:01:49]} 21. Bd4 {[%clk 0:01:58]}  Re8 {[%clk 0:01:45]} 22. Bc3 {[%clk 0:01:45]}  Be6 {[%clk 0:01:44]} 23. Qd4 {[%clk 0:01:45]}  Nf3+ {[%clk 0:01:44]} 24. gxf3 {[%clk 0:01:42]}  Qg5+ {[%clk 0:01:43]} 25. Kh1 {[%clk 0:01:39]}  Bxd4 {[%clk 0:01:43]} 26. Bxd4+ {[%clk 0:01:39]}  Kg8 {[%clk 0:01:44]} 27. f4 {[%clk 0:01:40]}  Qh4 {[%clk 0:01:37]} 28. Kh2 {[%clk 0:01:39]}  g5 {[%clk 0:01:20]} 29. fxg5 {[%clk 0:01:28]}  f4 {[%clk 0:01:17]} 30. Bf2 {[%clk 0:00:47]}  Qxh3+ {[%clk 0:01:17]} 31. Kg1 {[%clk 0:00:48]}  f3 {[%clk 0:01:16]} 32. Rc3 {[%clk 0:00:48]}  Qg2# {[%clk 0:01:15]} 0-1


[Site "https://www.chess.com"]

[Event "Titled Tuesday Blitz April 11 Early 2023"]
[White "Leyva Rivera, Yunier"]
[Black "Lohani, Sujana"]
[WhiteFideId "3505065"]
[BlackFideId "12311987"]
[WhiteElo "2430"]
[BlackElo "1718"]
[Result "1-0"]
[Round "02"]
[TimeControl "180+2"]
[Date "2023.04.11"]
[WhiteClock "0:01:46"]
[BlackClock "0:01:31"]

1. d4 {[%clk 0:03:00]}  g6 {[%clk 0:03:00]} 2. Nf3 {[%clk 0:03:00]}  Bg7 {[%clk 0:02:58]} 3. g3 {[%clk 0:03:01]}  d6 {[%clk 0:02:55]} 4. Bg2 {[%clk 0:03:01]}  Nf6 {[%clk 0:02:51]} 5. O-O {[%clk 0:03:01]}  O-O {[%clk 0:02:52]} 6. b3 {[%clk 0:03:00]}  c6 {[%clk 0:02:49]} 7. Nbd2 {[%clk 0:02:59]}  Nbd7 {[%clk 0:02:49]} 8. Bb2 {[%clk 0:02:58]}  Re8 {[%clk 0:02:47]} 9. e4 {[%clk 0:02:57]}  e5 {[%clk 0:02:46]} 10. dxe5 {[%clk 0:02:54]}  Nxe5 {[%clk 0:02:44]} 11. Nxe5 {[%clk 0:02:53]}  dxe5 {[%clk 0:02:44]} 12. Nc4 {[%clk 0:02:54]}  Nd7 {[%clk 0:02:25]} 13. Nd6 {[%clk 0:02:47]}  Re7 {[%clk 0:02:15]} 14. Ba3 {[%clk 0:02:44]}  c5 {[%clk 0:02:13]} 15. Bh3 {[%clk 0:02:31]}  Qb6 {[%clk 0:01:51]} 16. Qd3 {[%clk 0:02:00]}  a6 {[%clk 0:01:44]} 17. Rfd1 {[%clk 0:01:50]}  Qc6 {[%clk 0:01:33]} 18. Nxc8 {[%clk 0:01:46]}  Rxc8 {[%clk 0:01:31]} 19. Bxd7 {[%clk 0:01:46]} 1-0


[Site "https://www.chess.com"]

[Event "Titled Tuesday Blitz April 11 Early 2023"]
[White "So, Wesley"]
[Black "Siva Mahadevan"]
[WhiteFideId "5202213"]
[BlackFideId "25043153"]
[WhiteElo "2749"]
[BlackElo "2249"]
[Result "1-0"]
[Round "03"]
[TimeControl "180+2"]
[Date "2023.04.11"]
[WhiteClock "0:01:14"]
[BlackClock "0:00:50"]

1. Nf3 {[%clk 0:02:26]}  Nf6 {[%clk 0:02:42]} 2. d4 {[%clk 0:02:25]}  g6 {[%clk 0:02:42]} 3. Nbd2 {[%clk 0:02:25]}  d5 {[%clk 0:02:37]} 4. e3 {[%clk 0:02:24]}  Bg7 {[%clk 0:02:37]} 5. b4 {[%clk 0:02:24]}  O-O {[%clk 0:02:37]} 6. Be2 {[%clk 0:02:25]}  a5 {[%clk 0:02:36]} 7. b5 {[%clk 0:02:25]}  c5 {[%clk 0:02:32]} 8. bxc6 {[%clk 0:02:26]}  Nxc6 {[%clk 0:02:32]} 9. O-O {[%clk 0:02:23]}  Bf5 {[%clk 0:02:31]} 10. c3 {[%clk 0:02:24]}  Rc8 {[%clk 0:02:30]} 11. Ba3 {[%clk 0:02:21]}  Re8 {[%clk 0:02:28]} 12. Rc1 {[%clk 0:02:21]}  e5 {[%clk 0:02:25]} 13. Nxe5 {[%clk 0:02:11]}  Nxe5 {[%clk 0:02:26]} 14. dxe5 {[%clk 0:02:12]}  Rxe5 {[%clk 0:02:27]} 15. c4 {[%clk 0:02:11]}  dxc4 {[%clk 0:02:24]} 16. Bxc4 {[%clk 0:02:02]}  b5 {[%clk 0:02:20]} 17. Nf3 {[%clk 0:01:52]}  Qxd1 {[%clk 0:01:47]} 18. Rfxd1 {[%clk 0:01:53]}  Ree8 {[%clk 0:01:35]} 19. Bxb5 {[%clk 0:01:53]}  Rxc1 {[%clk 0:01:34]} 20. Rxc1 {[%clk 0:01:46]}  Rb8 {[%clk 0:01:34]} 21. Nd4 {[%clk 0:01:46]}  Ne4 {[%clk 0:01:14]} 22. Nxf5 {[%clk 0:01:46]}  gxf5 {[%clk 0:01:15]} 23. Bc4 {[%clk 0:01:37]}  Bb2 {[%clk 0:00:58]} 24. Rb1 {[%clk 0:01:36]}  Rc8 {[%clk 0:00:59]} 25. Ba6 {[%clk 0:01:26]}  Rc6 {[%clk 0:00:50]} 26. Bb5 {[%clk 0:01:14]} 1-0


[Site "https://www.chess.com"]

[Event "Titled Tuesday Blitz April 11 Early 2023"]
[White "Ashraf, Artin"]
[Black "Andreikin, Dmitry"]
[WhiteFideId "22514805"]
[BlackFideId "4158814"]
[WhiteElo "2188"]
[BlackElo "2736"]
[Result "1-0"]
[Round "03"]
[TimeControl "180+2"]
[Date "2023.04.11"]
[WhiteClock "0:00:09"]
[BlackClock "0:00:18"]

1. Nf3 {[%clk 0:02:58]}  d5 {[%clk 0:02:59]} 2. g3 {[%clk 0:02:56]}  Nf6 {[%clk 0:02:56]} 3. Bg2 {[%clk 0:02:55]}  Bf5 {[%clk 0:02:56]} 4. O-O {[%clk 0:02:51]}  e6 {[%clk 0:02:56]} 5. d3 {[%clk 0:02:48]}  h6 {[%clk 0:02:55]} 6. Nc3 {[%clk 0:02:17]}  Bh7 {[%clk 0:02:54]} 7. Qe1 {[%clk 0:02:14]}  Be7 {[%clk 0:02:51]} 8. e4 {[%clk 0:02:13]}  O-O {[%clk 0:02:52]} 9. Bd2 {[%clk 0:02:09]}  c5 {[%clk 0:02:35]} 10. Ne5 {[%clk 0:02:00]}  Nc6 {[%clk 0:02:31]} 11. Nxc6 {[%clk 0:01:57]}  bxc6 {[%clk 0:02:31]} 12. Na4 {[%clk 0:01:54]}  Rb8 {[%clk 0:02:29]} 13. b3 {[%clk 0:01:47]}  Re8 {[%clk 0:02:12]} 14. Qe2 {[%clk 0:01:43]}  dxe4 {[%clk 0:02:03]} 15. dxe4 {[%clk 0:01:38]}  Nxe4 {[%clk 0:02:02]} 16. Bxe4 {[%clk 0:01:10]}  Bxe4 {[%clk 0:01:59]} 17. Qxe4 {[%clk 0:01:11]}  Qxd2 {[%clk 0:01:59]} 18. Rad1 {[%clk 0:01:07]}  Qa5 {[%clk 0:01:40]} 19. Qxc6 {[%clk 0:01:06]}  Rec8 {[%clk 0:01:40]} 20. Qd7 {[%clk 0:00:54]}  Rc7 {[%clk 0:01:38]} 21. Qd2 {[%clk 0:00:53]}  Qxd2 {[%clk 0:01:37]} 22. Rxd2 {[%clk 0:00:53]}  c4 {[%clk 0:01:38]} 23. Rfd1 {[%clk 0:00:51]}  Kf8 {[%clk 0:01:30]} 24. Rd7 {[%clk 0:00:39]}  Rbb7 {[%clk 0:01:29]} 25. Rxc7 {[%clk 0:00:36]}  Rxc7 {[%clk 0:01:30]} 26. Rd2 {[%clk 0:00:34]}  g5 {[%clk 0:01:08]} 27. Kf1 {[%clk 0:00:25]}  g4 {[%clk 0:01:05]} 28. Rd4 {[%clk 0:00:25]}  cxb3 {[%clk 0:01:03]} 29. cxb3 {[%clk 0:00:26]}  h5 {[%clk 0:01:02]} 30. Rc4 {[%clk 0:00:23]}  Rxc4 {[%clk 0:01:00]} 31. bxc4 {[%clk 0:00:23]}  f5 {[%clk 0:00:58]} 32. Ke2 {[%clk 0:00:22]}  Ke8 {[%clk 0:00:52]} 33. Nb2 {[%clk 0:00:13]}  h4 {[%clk 0:00:45]} 34. Nd3 {[%clk 0:00:11]}  Kd7 {[%clk 0:00:44]} 35. f3 {[%clk 0:00:09]}  gxf3+ {[%clk 0:00:20]} 36. Kxf3 {[%clk 0:00:09]}  Bd6 {[%clk 0:00:20]} 37. gxh4 {[%clk 0:00:05]}  Bxh2 {[%clk 0:00:21]} 38. h5 {[%clk 0:00:06]}  Ke7 {[%clk 0:00:17]} 39. c5 {[%clk 0:00:05]}  Bc7 {[%clk 0:00:16]} 40. Nb4 {[%clk 0:00:04]}  Kf6 {[%clk 0:00:16]} 41. Na6 {[%clk 0:00:04]}  Be5 {[%clk 0:00:14]} 42. c6 {[%clk 0:00:05]}  Kg5 {[%clk 0:00:15]} 43. c7 {[%clk 0:00:06]}  Bxc7 {[%clk 0:00:15]} 44. Nxc7 {[%clk 0:00:07]}  e5 {[%clk 0:00:16]} 45. Nb5 {[%clk 0:00:04]}  a5 {[%clk 0:00:16]} 46. Nd6 {[%clk 0:00:05]}  f4 {[%clk 0:00:15]} 47. Nf7+ {[%clk 0:00:04]}  Kf6 {[%clk 0:00:15]} 48. Nd8 {[%clk 0:00:03]}  Kg5 {[%clk 0:00:15]} 49. Nc6 {[%clk 0:00:03]}  Kf5 {[%clk 0:00:16]} 50. Nxa5 {[%clk 0:00:04]}  e4+ {[%clk 0:00:16]} 51. Kf2 {[%clk 0:00:04]}  Kg5 {[%clk 0:00:16]} 52. Nc4 {[%clk 0:00:05]}  Kxh5 {[%clk 0:00:17]} 53. a4 {[%clk 0:00:06]}  Kg4 {[%clk 0:00:17]} 54. a5 {[%clk 0:00:07]}  e3+ {[%clk 0:00:16]} 55. Nxe3+ {[%clk 0:00:07]}  fxe3+ {[%clk 0:00:17]} 56. Kxe3 {[%clk 0:00:08]}  Kf5 {[%clk 0:00:17]} 57. a6 {[%clk 0:00:09]}  Ke5 {[%clk 0:00:18]} 58. a7 {[%clk 0:00:09]} 1-0


[Site "https://www.chess.com"]

[Event "Titled Tuesday Blitz April 11 Early 2023"]
[White "Vachier-Lagrave, Maxime"]
[Black "Real_OceanStorm"]
[WhiteFideId "623539"]
[WhiteElo "2740"]
[BlackElo "2809"]
[Result "1-0"]
[Round "03"]
[TimeControl "180+2"]
[Date "2023.04.11"]
[WhiteClock "0:00:10"]
[BlackClock "0:00:02"]

1. e4 {[%clk 0:03:00]}  c5 {[%clk 0:03:00]} 2. Nf3 {[%clk 0:02:59]}  Nc6 {[%clk 0:03:00]} 3. Bb5 {[%clk 0:02:58]}  g6 {[%clk 0:02:56]} 4. O-O {[%clk 0:02:56]}  Bg7 {[%clk 0:02:56]} 5. Re1 {[%clk 0:02:55]}  e6 {[%clk 0:02:45]} 6. c3 {[%clk 0:02:46]}  Nge7 {[%clk 0:02:45]} 7. d4 {[%clk 0:02:45]}  cxd4 {[%clk 0:02:45]} 8. cxd4 {[%clk 0:02:46]}  d5 {[%clk 0:02:45]} 9. e5 {[%clk 0:02:46]}  h6 {[%clk 0:02:44]} 10. Nc3 {[%clk 0:02:33]}  O-O {[%clk 0:02:33]} 11. h4 {[%clk 0:02:32]}  Bd7 {[%clk 0:02:32]} 12. Bf4 {[%clk 0:02:31]}  Nf5 {[%clk 0:02:02]} 13. g3 {[%clk 0:02:30]}  Rc8 {[%clk 0:02:02]} 14. Qd2 {[%clk 0:02:28]}  a6 {[%clk 0:01:32]} 15. Bf1 {[%clk 0:02:22]}  Qb6 {[%clk 0:01:31]} 16. Rad1 {[%clk 0:02:19]}  h5 {[%clk 0:01:28]} 17. Bh3 {[%clk 0:02:18]}  Nce7 {[%clk 0:01:22]} 18. Kh2 {[%clk 0:02:10]}  Rc7 {[%clk 0:00:44]} 19. g4 {[%clk 0:02:06]}  hxg4 {[%clk 0:00:43]} 20. Bxg4 {[%clk 0:02:07]}  Rfc8 {[%clk 0:00:43]} 21. Rg1 {[%clk 0:02:06]}  Kf8 {[%clk 0:00:43]} 22. h5 {[%clk 0:02:05]}  gxh5 {[%clk 0:00:40]} 23. Bxh5 {[%clk 0:02:06]}  Rc4 {[%clk 0:00:27]} 24. Bg5 {[%clk 0:01:57]}  Ng6 {[%clk 0:00:25]} 25. Rg4 {[%clk 0:01:40]}  Rb4 {[%clk 0:00:18]} 26. Bxg6 {[%clk 0:01:11]}  fxg6 {[%clk 0:00:05]} 27. b3 {[%clk 0:01:05]}  Kf7 {[%clk 0:00:05]} 28. Kg2 {[%clk 0:01:01]}  Qc6 {[%clk 0:00:05]} 29. Rc1 {[%clk 0:01:00]}  Qb6 {[%clk 0:00:03]} 30. Bf6 {[%clk 0:00:59]}  Bh6 {[%clk 0:00:01]} 31. Ng5+ {[%clk 0:00:53]}  Ke8 {[%clk 0:00:02]} 32. Na4 {[%clk 0:00:46]}  Rxa4 {[%clk 0:00:01]} 33. Rxc8+ {[%clk 0:00:45]}  Bxc8 {[%clk 0:00:01]} 34. bxa4 {[%clk 0:00:46]}  Qc7 {[%clk 0:00:01]} 35. Qb4 {[%clk 0:00:42]}  Bxg5 {[%clk 0:00:02]} 36. Bxg5 {[%clk 0:00:42]}  b6 {[%clk 0:00:02]} 37. Qb3 {[%clk 0:00:41]}  Kd7 {[%clk 0:00:02]} 38. Be3 {[%clk 0:00:37]}  a5 {[%clk 0:00:02]} 39. Qb5+ {[%clk 0:00:33]}  Ke7 {[%clk 0:00:03]} 40. Kh2 {[%clk 0:00:30]}  Kf7 {[%clk 0:00:03]} 41. Qd3 {[%clk 0:00:27]}  Bd7 {[%clk 0:00:03]} 42. Bg5 {[%clk 0:00:27]}  Bxa4 {[%clk 0:00:01]} 43. Qh3 {[%clk 0:00:27]}  Kg8 {[%clk 0:00:01]} 44. Bf6 {[%clk 0:00:26]}  Qh7 {[%clk 0:00:01]} 45. Qxh7+ {[%clk 0:00:25]}  Kxh7 {[%clk 0:00:02]} 46. Bd8 {[%clk 0:00:24]}  Bb5 {[%clk 0:00:02]} 47. Bxb6 {[%clk 0:00:23]}  a4 {[%clk 0:00:03]} 48. Bc5 {[%clk 0:00:23]}  Bc4 {[%clk 0:00:03]} 49. a3 {[%clk 0:00:23]}  Kh6 {[%clk 0:00:03]} 50. Rg1 {[%clk 0:00:22]}  g5 {[%clk 0:00:03]} 51. Kg2 {[%clk 0:00:22]}  g4 {[%clk 0:00:04]} 52. Rh1+ {[%clk 0:00:18]}  Kg5 {[%clk 0:00:04]} 53. Rh8 {[%clk 0:00:19]}  Bb5 {[%clk 0:00:02]} 54. Rb8 {[%clk 0:00:14]}  Bc4 {[%clk 0:00:02]} 55. Rb6 {[%clk 0:00:14]}  Ng7 {[%clk 0:00:02]} 56. f3 {[%clk 0:00:13]}  Kf4 {[%clk 0:00:01]} 57. fxg4 {[%clk 0:00:13]}  Kxg4 {[%clk 0:00:02]} 58. Kf2 {[%clk 0:00:14]}  Kf4 {[%clk 0:00:02]} 59. Rb4 {[%clk 0:00:13]}  Nf5 {[%clk 0:00:02]} 60. Rxa4 {[%clk 0:00:12]}  Ke4 {[%clk 0:00:02]} 61. Rb4 {[%clk 0:00:10]}  Nxd4 {[%clk 0:00:02]} 62. Rb6 {[%clk 0:00:10]}  Nf5 {[%clk 0:00:02]} 63. Rxe6 {[%clk 0:00:09]}  d4 {[%clk 0:00:02]} 64. Re8 {[%clk 0:00:10]}  d3 {[%clk 0:00:03]} 65. Bb4 {[%clk 0:00:10]}  Bf7 {[%clk 0:00:03]} 66. Rf8 {[%clk 0:00:10]}  Bc4 {[%clk 0:00:03]} 67. Bc3 {[%clk 0:00:10]}  Ne3 {[%clk 0:00:01]} 68. Ke1 {[%clk 0:00:09]}  Nd5 {[%clk 0:00:02]} 69. Kd2 {[%clk 0:00:09]}  Nxc3 {[%clk 0:00:02]} 70. Kxc3 {[%clk 0:00:10]}  Be6 {[%clk 0:00:02]} 71. Rd8 {[%clk 0:00:09]}  Bd5 {[%clk 0:00:02]} 72. e6 {[%clk 0:00:08]}  Bxe6 {[%clk 0:00:01]} 73. Rxd3 {[%clk 0:00:08]}  Ke5 {[%clk 0:00:01]} 74. Rd4 {[%clk 0:00:09]}  Bd5 {[%clk 0:00:02]} 75. a4 {[%clk 0:00:09]}  Bb7 {[%clk 0:00:02]} 76. a5 {[%clk 0:00:09]}  Ba6 {[%clk 0:00:02]} 77. Rd2 {[%clk 0:00:10]}  Bb7 {[%clk 0:00:02]} 78. Kc4 {[%clk 0:00:10]} 1-0


[Site "https://www.chess.com"]

[Event "Titled Tuesday Blitz April 11 Early 2023"]
[White "Bortnyk, Olexandr"]
[Black "Goltsev, Dmitry"]
[WhiteFideId "14120828"]
[BlackFideId "24176710"]
[WhiteElo "2734"]
[BlackElo "2336"]
[Result "1-0"]
[Round "03"]
[TimeControl "180+2"]
[Date "2023.04.11"]
[WhiteClock "0:02:30"]
[BlackClock "0:01:50"]

1. d4 {[%clk 0:03:00]}  Nf6 {[%clk 0:03:00]} 2. Nc3 {[%clk 0:03:00]}  e6 {[%clk 0:02:59]} 3. Bf4 {[%clk 0:02:53]}  d5 {[%clk 0:02:59]} 4. Nb5 {[%clk 0:02:53]}  Na6 {[%clk 0:02:58]} 5. e3 {[%clk 0:02:53]}  c6 {[%clk 0:02:54]} 6. Nc3 {[%clk 0:02:53]}  Nc7 {[%clk 0:02:55]} 7. Nf3 {[%clk 0:02:53]}  Bd6 {[%clk 0:02:51]} 8. Ne5 {[%clk 0:02:54]}  Qe7 {[%clk 0:02:48]} 9. Qf3 {[%clk 0:02:54]}  h6 {[%clk 0:02:46]} 10. Bd3 {[%clk 0:02:53]}  a6 {[%clk 0:02:46]} 11. a4 {[%clk 0:02:49]}  Nd7 {[%clk 0:02:46]} 12. Nxf7 {[%clk 0:02:47]}  Qxf7 {[%clk 0:02:21]} 13. Bxd6 {[%clk 0:02:46]}  Qxf3 {[%clk 0:02:21]} 14. gxf3 {[%clk 0:02:47]}  Kd8 {[%clk 0:02:22]} 15. f4 {[%clk 0:02:40]}  Ne8 {[%clk 0:02:21]} 16. Be5 {[%clk 0:02:41]}  Nxe5 {[%clk 0:02:19]} 17. fxe5 {[%clk 0:02:41]}  Bd7 {[%clk 0:02:18]} 18. Bg6 {[%clk 0:02:38]}  Ke7 {[%clk 0:02:18]} 19. Rg1 {[%clk 0:02:38]}  Nc7 {[%clk 0:02:17]} 20. a5 {[%clk 0:02:37]}  Raf8 {[%clk 0:02:16]} 21. f4 {[%clk 0:02:35]}  Be8 {[%clk 0:02:14]} 22. Ke2 {[%clk 0:02:31]}  Bxg6 {[%clk 0:02:02]} 23. Rxg6 {[%clk 0:02:32]}  Ne8 {[%clk 0:02:03]} 24. Na4 {[%clk 0:02:31]}  Rf7 {[%clk 0:01:49]} 25. Rag1 {[%clk 0:02:30]}  Nc7 {[%clk 0:01:50]} 26. Rxg7 {[%clk 0:02:30]} 1-0


[Site "https://www.chess.com"]

[Event "Titled Tuesday Blitz April 11 Early 2023"]
[White "Paravyan, David"]
[Black "Acor, Corey"]
[WhiteFideId "4194985"]
[BlackFideId "2024861"]
[WhiteElo "2563"]
[BlackElo "2341"]
[Result "1-0"]
[Round "03"]
[TimeControl "180+2"]
[Date "2023.04.11"]
[WhiteClock "0:00:13"]
[BlackClock "0:00:06"]

1. d4 {[%clk 0:03:00]}  Nf6 {[%clk 0:02:59]} 2. c4 {[%clk 0:03:00]}  e5 {[%clk 0:02:59]} 3. dxe5 {[%clk 0:03:00]}  Ng4 {[%clk 0:02:58]} 4. e3 {[%clk 0:03:00]}  Nxe5 {[%clk 0:02:58]} 5. Nc3 {[%clk 0:03:00]}  g6 {[%clk 0:02:51]} 6. f4 {[%clk 0:02:53]}  Nec6 {[%clk 0:02:50]} 7. Nf3 {[%clk 0:02:53]}  Bg7 {[%clk 0:02:50]} 8. Bd3 {[%clk 0:02:52]}  d6 {[%clk 0:02:50]} 9. O-O {[%clk 0:02:52]}  O-O {[%clk 0:02:50]} 10. e4 {[%clk 0:02:46]}  f5 {[%clk 0:02:44]} 11. Be3 {[%clk 0:02:30]}  fxe4 {[%clk 0:02:14]} 12. Bxe4 {[%clk 0:02:31]}  Ne7 {[%clk 0:01:55]} 13. Ng5 {[%clk 0:02:25]}  c6 {[%clk 0:01:45]} 14. Qd3 {[%clk 0:02:14]}  Bf5 {[%clk 0:01:39]} 15. Rad1 {[%clk 0:02:12]}  Na6 {[%clk 0:00:58]} 16. Rfe1 {[%clk 0:01:53]}  Nc5 {[%clk 0:00:47]} 17. Bxc5 {[%clk 0:01:37]}  dxc5 {[%clk 0:00:48]} 18. Bxf5 {[%clk 0:01:15]}  Nxf5 {[%clk 0:00:46]} 19. Qh3 {[%clk 0:01:15]}  Bd4+ {[%clk 0:00:45]} 20. Kh1 {[%clk 0:01:16]}  Qd7 {[%clk 0:00:37]} 21. Nce4 {[%clk 0:01:16]}  b6 {[%clk 0:00:22]} 22. g4 {[%clk 0:00:55]}  h6 {[%clk 0:00:22]} 23. Nf3 {[%clk 0:00:30]}  Nd6 {[%clk 0:00:22]} 24. Nxd4 {[%clk 0:00:23]}  Nxe4 {[%clk 0:00:20]} 25. Rxe4 {[%clk 0:00:23]}  cxd4 {[%clk 0:00:20]} 26. Rdxd4 {[%clk 0:00:19]}  Qg7 {[%clk 0:00:16]} 27. Qe3 {[%clk 0:00:20]}  Rf7 {[%clk 0:00:15]} 28. Kg2 {[%clk 0:00:17]}  Raf8 {[%clk 0:00:14]} 29. b3 {[%clk 0:00:17]}  h5 {[%clk 0:00:10]} 30. h3 {[%clk 0:00:16]}  c5 {[%clk 0:00:08]} 31. Rd2 {[%clk 0:00:16]}  hxg4 {[%clk 0:00:07]} 32. hxg4 {[%clk 0:00:17]}  Qh6 {[%clk 0:00:07]} 33. g5 {[%clk 0:00:16]}  Qh4 {[%clk 0:00:07]} 34. Qg3 {[%clk 0:00:14]}  Rxf4 {[%clk 0:00:06]} 35. Qxh4 {[%clk 0:00:13]} 1-0


[Site "https://www.chess.com"]

[Event "Titled Tuesday Blitz April 11 Early 2023"]
[White "Molina, Roberto Junio Brito"]
[Black "Bluebaum, Matthias"]
[WhiteFideId "2109450"]
[BlackFideId "24651516"]
[WhiteElo "2376"]
[BlackElo "2638"]
[Result "0-1"]
[Round "03"]
[TimeControl "180+2"]
[Date "2023.04.11"]
[WhiteClock "0:01:02"]
[BlackClock "0:01:39"]

1. d4 {[%clk 0:03:00]}  d5 {[%clk 0:02:58]} 2. c4 {[%clk 0:02:59]}  e6 {[%clk 0:02:59]} 3. Nc3 {[%clk 0:02:59]}  Bb4 {[%clk 0:03:00]} 4. Nf3 {[%clk 0:02:55]}  Nf6 {[%clk 0:03:00]} 5. Qa4+ {[%clk 0:02:54]}  Nc6 {[%clk 0:03:00]} 6. Bg5 {[%clk 0:02:53]}  dxc4 {[%clk 0:02:59]} 7. a3 {[%clk 0:02:35]}  Bxc3+ {[%clk 0:02:59]} 8. bxc3 {[%clk 0:02:36]}  Qd5 {[%clk 0:03:00]} 9. Bxf6 {[%clk 0:02:31]}  gxf6 {[%clk 0:03:01]} 10. Nd2 {[%clk 0:02:29]}  b5 {[%clk 0:03:00]} 11. Qc2 {[%clk 0:02:29]}  f5 {[%clk 0:02:55]} 12. f3 {[%clk 0:02:25]}  Bb7 {[%clk 0:02:50]} 13. e4 {[%clk 0:02:24]}  fxe4 {[%clk 0:02:51]} 14. Nxe4 {[%clk 0:02:13]}  O-O-O {[%clk 0:02:51]} 15. Be2 {[%clk 0:01:55]}  f5 {[%clk 0:02:45]} 16. Nf2 {[%clk 0:01:34]}  Rhg8 {[%clk 0:02:29]} 17. O-O {[%clk 0:01:30]}  Rg7 {[%clk 0:02:07]} 18. Nh3 {[%clk 0:01:29]}  Rdg8 {[%clk 0:02:04]} 19. Rf2 {[%clk 0:01:29]}  Nxd4 {[%clk 0:01:53]} 20. cxd4 {[%clk 0:01:21]}  Qxd4 {[%clk 0:01:54]} 21. Rd1 {[%clk 0:01:20]}  Rxg2+ {[%clk 0:01:40]} 22. Kh1 {[%clk 0:01:02]}  Rxf2 {[%clk 0:01:39]} 0-1


[Site "https://www.chess.com"]

[Event "Titled Tuesday Blitz April 11 Early 2023"]
[White "Dehtiarov, Roman"]
[Black "Firouzja, Alireza"]
[WhiteFideId "14186640"]
[BlackFideId "12573981"]
[WhiteElo "2189"]
[BlackElo "2904"]
[Result "0-1"]
[Round "03"]
[TimeControl "180+2"]
[Date "2023.04.11"]
[WhiteClock "0:00:14"]
[BlackClock "0:00:18"]

1. d4 {[%clk 0:03:00]}  Nf6 {[%clk 0:02:57]} 2. c4 {[%clk 0:03:00]}  e6 {[%clk 0:02:56]} 3. Nf3 {[%clk 0:02:59]}  d5 {[%clk 0:02:56]} 4. cxd5 {[%clk 0:02:59]}  exd5 {[%clk 0:02:56]} 5. Nc3 {[%clk 0:02:58]}  c6 {[%clk 0:02:54]} 6. Bg5 {[%clk 0:02:59]}  h6 {[%clk 0:02:41]} 7. Bh4 {[%clk 0:02:57]}  Bb4 {[%clk 0:02:18]} 8. a3 {[%clk 0:02:40]}  Bxc3+ {[%clk 0:02:14]} 9. bxc3 {[%clk 0:02:40]}  Qa5 {[%clk 0:02:13]} 10. Bxf6 {[%clk 0:02:28]}  Qxc3+ {[%clk 0:02:12]} 11. Nd2 {[%clk 0:02:28]}  gxf6 {[%clk 0:02:12]} 12. e3 {[%clk 0:02:28]}  Bf5 {[%clk 0:02:01]} 13. Be2 {[%clk 0:02:23]}  Nd7 {[%clk 0:01:54]} 14. O-O {[%clk 0:02:23]}  Rg8 {[%clk 0:01:31]} 15. Kh1 {[%clk 0:02:15]}  Nb6 {[%clk 0:01:29]} 16. a4 {[%clk 0:02:08]}  Nc8 {[%clk 0:01:14]} 17. Rc1 {[%clk 0:02:03]}  Qb4 {[%clk 0:01:13]} 18. f3 {[%clk 0:01:47]}  Nd6 {[%clk 0:01:10]} 19. e4 {[%clk 0:01:48]}  Be6 {[%clk 0:01:09]} 20. Nb3 {[%clk 0:01:38]}  dxe4 {[%clk 0:01:07]} 21. Nc5 {[%clk 0:01:38]}  e3 {[%clk 0:01:04]} 22. Rb1 {[%clk 0:01:29]}  Qd2 {[%clk 0:01:04]} 23. Qxd2 {[%clk 0:01:22]}  exd2 {[%clk 0:01:04]} 24. Nxb7 {[%clk 0:01:23]}  Nf5 {[%clk 0:01:04]} 25. Rfd1 {[%clk 0:01:19]}  Ne3 {[%clk 0:01:03]} 26. Rxd2 {[%clk 0:01:10]}  Rxg2 {[%clk 0:01:02]} 27. Nc5 {[%clk 0:01:06]}  Bd5 {[%clk 0:00:58]} 28. Ne4 {[%clk 0:00:58]}  Kf8 {[%clk 0:00:40]} 29. Rg1 {[%clk 0:00:48]}  f5 {[%clk 0:00:29]} 30. Rxg2 {[%clk 0:00:31]}  Nxg2 {[%clk 0:00:30]} 31. Nc3 {[%clk 0:00:19]}  Nf4 {[%clk 0:00:29]} 32. Nxd5 {[%clk 0:00:19]}  cxd5 {[%clk 0:00:30]} 33. Bb5 {[%clk 0:00:16]}  Rc8 {[%clk 0:00:29]} 34. Kg1 {[%clk 0:00:16]}  Rc3 {[%clk 0:00:28]} 35. Kf2 {[%clk 0:00:15]}  Ke7 {[%clk 0:00:28]} 36. Rb2 {[%clk 0:00:14]}  Ne6 {[%clk 0:00:25]} 37. Bf1 {[%clk 0:00:13]}  Nxd4 {[%clk 0:00:16]} 38. Rb7+ {[%clk 0:00:13]}  Kf6 {[%clk 0:00:17]} 39. Rxa7 {[%clk 0:00:14]}  Rxf3+ {[%clk 0:00:17]} 40. Kg2 {[%clk 0:00:14]}  Ra3 {[%clk 0:00:18]} 41. a5 {[%clk 0:00:14]}  f4 {[%clk 0:00:18]} 42. a6 {[%clk 0:00:14]}  Ra2+ {[%clk 0:00:18]} 43. Kg1 {[%clk 0:00:14]}  Nf3+ {[%clk 0:00:18]} 0-1


[Site "https://www.chess.com"]